Cogmind - Beta 15 X1 @@@ ROGUE MODE // 2024.11.20 @ 08:45:34 Player: H3-RMN Result: Destroyed by G-47 Trooper with Particle Gun Performance ------------- Evolutions (0) 0 Regions Visited (2) 400 Robots Destroyed (12) 60 Value Destroyed (379) 379 Prototype IDs (11) 220 Alien Tech Used (0) 0 Bonus (0) 0 TOTAL SCORE: 1059 Bonus ------- None Cogmind --------- Core Integrity 0/250 Matter 240/300 Energy 190/200 System Corruption 0% Temperature Cool (9) Movement Treading (360) Ox2 Location -10/Subcaves Parts ------- > --- POWER (1) -------- Subdweller Power Source > --- PROPULSION (2) --- Spiked Treads Subdweller Monowheel > --- UTILITY (2) ------ Large Storage Unit Seismic Detector > --- WEAPON (2) ------- Subdweller Beam Cannon Subdweller Shrapnel Launcher > --- INVENTORY (15) --- Light Ion Engine Light Ion Engine Light Treads Light Treads Makeshift Leg Compact Wheel Subdweller Monowheel Power Bank Riot Gun Small Laser Subdweller Beam Cannon Assault Rifle Light Assault Rifle Subdweller Machine Gun Barrage Gun Peak State ------------ > --- POWER ------------ Subdweller Power Source > --- PROPULSION ------- Spiked Treads Subdweller Monowheel > --- UTILITY ---------- Large Storage Unit Seismic Detector > --- WEAPON ----------- Subdweller Machine Gun Barrage Gun > --- INVENTORY -------- Light Ion Engine Light Ion Engine Light Treads Light Treads Makeshift Leg Compact Wheel Subdweller Monowheel Small Storage Unit Riot Gun Small Laser Subdweller Beam Cannon Assault Rifle Light Assault Rifle Subdweller Shrapnel Launcher [Rating: 15] Favorites ----------- Power Subdweller Power Source Engine Subdweller Power Source Propulsion Subdweller Monowheel Treads Spiked Treads Wheel Subdweller Monowheel Utility Seismic Detector Device Seismic Detector Storage Large Storage Unit Weapon Subdweller Machine Gun Energy Gun Subdweller Laser Energy Cannon Subdweller Beam Cannon Ballistic Gun Subdweller Machine Gun Launcher Subdweller Shrapnel Launcher Build | -11 -10 -10 ------- Run | Yrd Mat Sub Slots Evolved . | . . . Power . | . . . Propulsion . | . . . Utility . | . . . Weapon . | . . . Parts Attached 20 | 6 2 12 Power 3 | . 1 2 Engine 3 | . 1 2 Core . | . . . Reactor . | . . . Propulsion 6 | 2 . 4 Treads 2 | 1 . 1 Leg . | . . . Wheel 4 | 1 . 3 Hover . | . . . Flight . | . . . Utility 3 | 2 1 . Device 1 | 1 . . Storage 2 | 1 1 . Processor . | . . . Hackware . | . . . Protection . | . . . Artifact . | . . . Weapon 8 | 2 . 6 Energy Gun 1 | . . 1 Energy Cannon 2 | . . 2 Ballistic Gun 4 | 2 . 2 Ballistic Cannon . | . . . Launcher 1 | . . 1 Special Weapon . | . . . Impact Weapon . | . . . Slashing Weapon . | . . . Piercing Weapon . | . . . Special Melee Weapon . | . . . Unidentified Prototypes . | . . . Parts Lost 4 | . . 4 Power 2 | . . 2 Propulsion 1 | . . 1 Utility . | . . . Weapon 1 | . . 1 Highest Loss Streak 2 | . . 2 To Critical Strikes . | . . . Average Backups 12 | 3 5 13 Power 1 | 1 2 1 Propulsion 4 | 1 2 4 Utility . | . . . Weapon 5 | . 1 5 Tool/Special . | . . . Unused Backups 9 | . . 9 Power 2 | . . 2 Propulsion 4 | . . 4 Utility 1 | . . 1 Weapon 2 | . . 2 Tool/Special . | . . . Average Slot Usage (%) 99 | . 89 99 Engine 13 | . 4 13 Treads 14 | . 14 14 Wheel 13 | . 14 13 Device 14 | . 14 14 Storage 14 | . 14 14 Energy Gun 1 | . . 2 Energy Cannon 9 | . . 10 Ballistic Gun 16 | . 28 15 Peak Build Rating 15 | 6 7 15 Average Rating 12 | 4 6 13 On Entrance 4 | . 6 7 Naked Turns . | . . . Heaviest Build 38 | 9 29 38 Greatest Support 20 | 10 10 20 Greatest Overweight (x) 3 | . 2 3 Average Overweight (x) 1 | . 1 1 Largest Inventory Capacity 15 | 8 15 15 Average Capacity 14 | 7 14 15 Most Carried 15 | 6 6 15 Average Carried 12 | 3 5 13 Final Capacity 15 | 8 15 15 Final Carried 15 | 5 6 15 Class Distribution -------------------- 78% | Scavenger-Mutant 21% | Mutant Dominant Class ---------------- Mutant | -10/Materials Scavenger-Mutant | -10/Subcaves Resources | -11 -10 -10 ----------- Run | Yrd Mat Sub Matter Collected 530 | 292 . 238 Remotely . | . . . Salvage Created 480 | 112 . 368 Parts 23 | 9 . 14 Haulers Intercepted . | . . . Recyclers Shooed . | . . . Parts Field Recycled . | . . . Retrieved Matter . | . . . Parts Self-Destructed 1 | . . 1 Prevented . | . . . Kills | -11 -10 -10 ------- Run | Yrd Mat Sub Combat Hostiles Destroyed 9 | . . 9 Guns 7 | . . 7 Cannons 1 | . . 1 AOE 1 | . . 1 Classes Destroyed 5 | 2 . 3 Tunneler 2 | 2 . . Recycler 1 | 1 . . Grunt 1 | . . 1 Sentry 1 | . . 1 Subdweller 7 | . . 7 Best Kill Streak 3 | 3 . 2 Combat Bots Only 2 | . . 2 Max Kills in Single Turn 1 | 1 . 1 Gunslinging . | . . . Exploded 1 | . . 1 Melee . | . . . Uniques/NPCs Destroyed . | . . . Combat | -11 -10 -10 -------- Run | Yrd Mat Sub Hostile Shots Fired 47 | . . 47 Missed 13 | . . 13 Damage Taken 835 | . . 835 Core 256 | . . 256 Absorbed by Shields . | . . . Core Remaining (%) 100 | 100 . . Volleys Fired 79 | 8 . 71 Largest 2 | 2 . 2 Hottest 110 | 40 . 110 Shots Fired 106 | 16 . 90 Gun 73 | 16 . 57 Cannon 31 | . . 31 Launcher 2 | . . 2 Special . | . . . Kinetic 74 | 16 . 58 Thermal 32 | . . 32 Explosive . | . . . Electromagnetic . | . . . Robot Hit Streak 16 | 5 . 16 Robot Miss Streak 2 | 1 . 2 Penetration Max . | . . . Secondary Targets . | . . . Shots Hit Robots 55 | 9 . 46 Core Hits 21 | 4 . 17 Critical Kills . | . . . Critical Parts Destroyed . | . . . Critical Strikes 1 | . . 1 Destroy 1 | . . 1 Melee Attacks . | . . . Impact . | . . . Slashing . | . . . Piercing . | . . . Sneak Attacks . | . . . Combat Hostiles . | . . . Follow-up Attacks . | . . . Damage Inflicted 1100 | 95 . 1005 Guns 681 | 95 . 586 Cannons 217 | . . 217 Explosions 202 | . . 202 Melee . | . . . Ramming . | . . . Kinetic 860 | 95 . 765 Thermal 240 | . . 240 Explosive . | . . . Electromagnetic . | . . . Impact . | . . . Slashing . | . . . Piercing . | . . . Highest Corruption . | . . . Average Corruption . | . . . Corruption Purged . | . . . Corruption Blocked . | . . . Overload Shots . | . . . Overflow Damage 23 | . . 23 Projectiles . | . . . Explosions 23 | . . 23 Melee . | . . . Knockbacks . | . . . Impact . | . . . Kinetic . | . . . Secondary . | . . . Self-Inflicted Damage . | . . . Shots . | . . . Rammed . | . . . Targets Rammed . | . . . Kicked . | . . . Crushed . | . . . Highest Temperature . | . . . Average Temperature . | . . . Received Heat Transfer 114 | . . 114 Siege Activations . | . . . Martial Activations . | . . . Shielding Activations . | . . . Robots Disrupted . | . . . Combat Hostiles . | . . . Robots Corrupted . | . . . Combat Hostiles . | . . . Parts Fried . | . . . Impact Corruptions . | . . . Robots Melted . | . . . Combat Hostiles . | . . . Parts Melted 3 | . . 3 Heat Transferred 321 | . . 321 Parts Sabotaged . | . . . Parts Stolen . | . . . Parts Stripped . | . . . Power Chain Reactions . | . . . Alert | -11 -10 -10 ------- Run | Yrd Mat Sub Maximum Alert Level . | . . . Low Security (%) 100 | 100 100 . Level 1 . | . . . Level 2 . | . . . Level 3 . | . . . Level 4 . | . . . Level 5 . | . . . High Security . | . . . Max Security . | . . . Peak Influence 10 | 10 . . Initial . | . . . Average 1 | 2 . . Influence Increases 55 | 15 . 40 Destroy 0b10 Robot/C 40 | . . 40 Destroy 0b10 Robot/NC 15 | 15 . . Influence Decreases 35 | 15 . 20 Time Decay 35 | 15 . 20 Squads Dispatched . | . . . Investigation . | . . . Extermination . | . . . Reinforcement . | . . . Assault . | . . . Garrison . | . . . Intercept . | . . . Searches Triggered . | . . . Construction Impeded . | . . . Haulers Reinforced . | . . . Active Scanning Responses . | . . . Cargo Convoy Interrupts . | . . . Stealth | -11 -10 -10 --------- Run | Yrd Mat Sub Distress Signals . | . . . Communications Jammed . | . . . Distress Signals . | . . . Times Spotted 10 | . . 10 Peak Tracking Total 2 | . . 2 Tactical Retreats . | . . . Traps | -11 -10 -10 ------- Run | Yrd Mat Sub Traps Triggered . | . . . Indirectly . | . . . Trap Hack Attempts . | . . . Triggered . | . . . Disarmed . | . . . Reprogrammed . | . . . Reused . | . . . Traps Extracted . | . . . Installed . | . . . Triggered . | . . . Machines | -11 -10 -10 ---------- Run | Yrd Mat Sub Machines Disabled 1 | . . 1 Max in Single Turn 1 | . . 1 Machines Repaired . | . . . Machines Dismantled . | . . . Machines Sabotaged . | . . . Overloaded Fab Kills . | . . . Hacking | -11 -10 -10 --------- Run | Yrd Mat Sub Machines Accessed 3 | . 1 2 Terminals 1 | . 1 . Fabricators . | . . . Repair Stations . | . . . Recycling Units . | . . . Scanalyzers . | . . . Garrison Access . | . . . Total Hacks 6 | . 1 5 Successful 5 | . . 5 Failed 1 | . 1 . Catastrophic 1 | . 1 . Database Lockouts . | . . . Manual 1 | . 1 . Terminals 1 | . 1 . Fabricators . | . . . Repair Stations . | . . . Recycling Units . | . . . Scanalyzers . | . . . Garrison Access . | . . . Terminal Hacks 5 | . . 5 Record 4 | . . 4 Derelict Proto ID Bank 1 | . . 1 Fabricator Hacks . | . . . Repair Station Hacks . | . . . Recycling Unit Hacks . | . . . Scanalyzer . | . . . Garrison Access Hacks . | . . . Unauthorized Hacks . | . . . Terminals . | . . . Fabricators . | . . . Repair Stations . | . . . Recycling Units . | . . . Scanalyzers . | . . . Garrison Access . | . . . Data Cores Recovered . | . . . Used . | . . . Hacking Detections 1 | . 1 . Full Trace Events . | . . . Feedback Events . | . . . Feedback Blocked . | . . . Robot Schematics Acquired . | . . . Robots Built . | . . . Authchips . | . . . Time . | . . . Total Robot Build Rating . | . . . Part Schematics Acquired . | . . . Parts Built . | . . . Authchips . | . . . Time . | . . . Total Part Build Rating . | . . . Parts Repaired . | . . . Time . | . . . Parts Recycled . | . . . Recycled Matter . | . . . Retrieved Matter . | . . . Retrieved Components . | . . . Parts Scanalyzed . | . . . Part Schematics Acquired . | . . . Parts Damaged . | . . . Bothacking | -11 -10 -10 ------------ Run | Yrd Mat Sub Used RIF Installer . | . . . Robots Hacked . | . . . Non-combat . | . . . Combat . | . . . Robot Hacks Applied . | . . . Relay Couplers Released . | . . . Fabnet Peak Effective % . | . . . Robots Rewired . | . . . Allies Hacked . | . . . Hacks Repelled . | . . . Allies | -11 -10 -10 -------- Run | Yrd Mat Sub Total Allies . | . . . Largest Group . | . . . Highest-Rated Group . | . . . Highest-Rated Ally . | . . . Total Orders . | . . . Ally Attacks . | . . . Total Damage . | . . . Kills . | . . . Allies Corrupted . | . . . Allies Melted . | . . . Intel | -11 -10 -10 ------- Run | Yrd Mat Sub Active Infowar (turns) 1828 | 20 90 1718 Seismic 1828 | 20 90 1718 Robot Analysis Total . | . . . Derelict Logs Recovered 1 | . . 1 Drone Launches . | . . . Drone Recoveries . | . . . Exploration | -11 -10 -10 ------------- Run | Yrd Mat Sub Turns Passed 1902 | 94 90 1718 Spaces Moved 1316 | 69 82 1165 Core 1 | 1 . . Treads 39 | . . 39 Legs . | . . . Wheels 1276 | 68 82 1126 Hover . | . . . Flight . | . . . Fastest Speed 50 | 50 80 110 Average Speed 121 | 79 106 125 Slowest Speed 260 | 80 110 260 Overloaded Moves . | . . . Propulsion Burnouts . | . . . Robots Hopped . | . . . Cave-ins Triggered . | . . . Exploration Rate (%) 32 | 5 12 81 Regions Visited 2 Branch Regions 1 Pre-discovered Areas . | . . . Known Exits Taken . | . . . Unknown Exits Taken 2 | 1 1 . Scrap Searched 2 | . . 2 Spaces Dug 9 | . . 9 Terrain Destroyed 48 | . . 48 Melee . | . . . Projectile 20 | . . 20 AOE 28 | . . 28 Terrain Rammed . | . . . Walls Destroyed . | . . . Machines Disabled . | . . . Actions | -11 -10 -10 --------- Run | Yrd Mat Sub Total 1505 | 90 83 1332 Wait 71 | 2 . 69 Move 1314 | 68 81 1165 Hop . | . . . Pick Up 16 | 6 . 10 Fast Attach 9 | 5 1 3 Attach 3 | 1 . 2 Detach 1 | . . 1 Swap 9 | . 1 8 Drop 3 | . . 3 Fire 79 | 8 . 71 Melee . | . . . Ram . | . . . Kick . | . . . Crush . | . . . Escape Stasis . | . . . Rewire . | . . . Trap . | . . . Miscellaneous . | . . . Route ------- -11/Scrapyard -10/Materials -10/Subcaves (discovered 1 exit: [*Mat]) History --------- Turn | Location | Event 2 | -11/Scrapyard | Met Revision 17 14 | -11/Scrapyard | Discovered new exit (range 16) 95 | -11/Scrapyard | Entered Materials 176 | -10/Materials | Discovered new exit (range 8) 185 | -10/Materials | Entered Subcaves 300 | -10/Subcaves | Build established: Mutant 373 | -10/Subcaves | Shifting Twisted Machinery released Mak. Leg 461 | -10/Subcaves | Shifting Twisted Machinery released Barrage Gun 715 | -10/Subcaves | Build established: Scavenger-Mutant 884 | -10/Subcaves | Core integrity fell below 50% 915 | -10/Subcaves | Core integrity fell below 20% 1245 | -10/Subcaves | Shifting Twisted Machinery released Sub. Shrapnel Launcher 1251 | -10/Subcaves | Shifting Twisted Machinery released Sub. Beam Cannon 1483 | -10/Subcaves | Discovered new exit (range 7) 1592 | -10/Subcaves | Visited Clippyterm 1596 | -10/Subcaves | Learned Factory garrison access intel 1641 | -10/Subcaves | Visited 4L-MR0's lab 1653 | -10/Subcaves | Found Power Bank 1903 | -10/Subcaves | Destroyed by G-47 Trooper with Particle Gun Last Messages --------------- Meta Core Arachnoskeleton Cargo Legs Tripod Weapons Platform Flightbrick Gun Armor Tower Shield Power Bank Rainbow Chip VL-GR5's Exoskeleton "Deathgrip" Powered Cannon 01647_ 4L-MR0 mumbles to no one in particular: "Damn Subs sneaking around stealing my stuff." 01648_ Testing Chamber breached. 01652_ Dropped Lgt. Treads. 01653_ Acquired Power Bank. 01657_ 4L-MR0 mumbles: "I'm surprised some of them are even willing to come in here given their fear of my usual visitors." 01899_ Destroyed Imp. Heat Sink. 01901_ G-34 Mercenary destroyed. Map ----- +----------------------------------------------------+ | ##### ##??# #?????????????????## ## | | #???# ##?# #??????????????????######? | | ##?## #?## ##????????????????????????? | | ### #### ##???????????????????###???? | | ## #????????????????????# ##### | | # #????????????????????# # | | ## #????????????######### | | ##### ##????????????# # # ## | | ## ##???## # ##????######## ### | | ?#### ##?????### # ##???# | | ????### #????????###"# ########## "" #### | | ??????####??????????#" # #??## ####??### | | ????????????????????## ## ##?# #?????# | | ?????????????????????# # ### ##????# ### | | ?????????????????????## # ### # ##????###??# | | ?????????????????????## # ### #?????????## | | ?????????????????????# # # ##??????????# | | ?????????????????????# # ###???????????# | | ?????????????????????# ### #????????????## | | ?????????????????????## ## #????????????# | | ?????????????????????# ### #???? ???????## | | ?????????????????????# #### # #??? ???????# | | ?????????????????????# ### #??? ??????# | | ?????????????????????## ### ####?" ????## | | ??????????????????????# # ;;;;#??## #### | | ??????????????????????## @ ; ### | | ##?????????????????????### < ### | | #######?????????????????# g *%! | | ##???????????????# | | #?????????????? ; ; ### | | #???????????? ; # #?## | | ## ###???????????# ####? ; ??# | | #### ###?????????????########?????# ###?## | | ????##?????????????????????????????? #????### | | ????????????????????????????????????? ?#??????# ## | | ??????????????????????????????????????????????# ?? | | ??????????????????????????????????????????????# ?? | | ??????????????????????????????????????????????# ?? | | ?????????????????????????????????????????????? ??? | | ??????????????????????????????????????????????#??? | | #?###????????????????????????????????????????????? | | ### #????????????????????????????????????????????? | | ##???????????????????????????????????????????? | | #???????????????????????????????????????????? | | #??????????????????????????????????????? ???? | | # #???????????????????????????????????????? ?? | | # #???????????????????????????????????????? ?? | | ##????????????????????????????????????????# ?? | | ##????????????????????????????????????????# ? | | #????????????????????????????????????????# ? | +----------------------------------------------------+ Best States ------------- Heat Dissipation 25 Energy Generation 15 Energy Capacity 250 Matter Stores 300 Matter Capacity 300 Sight Range 16 Terrain Scan Density 10 Evasion (%) 44 Recoil Reduction 1 Item Schematics ----------------- None Robot Schematics ------------------ None Fabricated ------------ Nothing Repaired ---------- Nothing Alien Tech Used ----------------- None Achievements -------------- None Challenges ------------ None Game ------ Seed RecoilDynamicMonowheel Manual? 0 Play Time 00:12:39 Cumulative 575.4 hours Start 2024.11.20 @ 08:31:01 End 2024.11.20 @ 08:45:34 Sessions 2 Manual Loads 0 Difficulty Rogue Special Mode None Game No. 226 Rogue 221 Adventurer 4 Explorer 1 Win Type - Total 9 Types 6/1/0/1/0/1/0/0/0 Lore% 91 Gallery% 92 Achievement% 87 Wizard Run 0 Options --------- Layout 0 ASCII 0 Keyboard 0 Movement Numpad Keybinds 0 Fullscreen 2 Font 18/CogNarrow Map View 76x50 Zoom Use 0% Tactical HUD 1 Map Filters NONE Filters NONE Steam 1 RUN: 3aaacfa8-5b2b-4af6-b06e-6a71d1a65921